bitfinex-derivatives/quotes_BTCF0:USTF0_20250728
["timestamp","ask_amount","ask_price","bid_price","bid_amount"]
[1753688222458,0.55791265,119020.0,119010.0,1.33444485]
[1753688223052,0.54294167,119020.0,119010.0,1.33444485]
[1753688223754,0.54594167,119020.0,119010.0,1.33444485]
[1753688225163,0.54594167,119020.0,119010.0,1.33544485]
[1753688225862,0.53563432,119020.0,119010.0,1.33544485]
[1753688226666,0.60236388,119020.0,119010.0,1.33544485]
[1753688227663,0.55277388,119020.0,119010.0,1.33544485]
[1753688228063,0.11137388,119020.0,119010.0,1.33544485]
[1753688229664,0.16096388,119020.0,119010.0,1.33544485]
[1753688229863,0.15796388,119020.0,119010.0,1.33544485]
[1753688230065,0.11137388,119020.0,119010.0,1.33544485]
[1753688230464,0.11137388,119020.0,119010.0,1.33444485]
[1753688230861,0.11437388,119020.0,119010.0,1.33444485]
[1753688233066,0.07655388,119020.0,119010.0,1.33444485]
[1753688233265,0.006,119020.0,119010.0,1.50248105]
[1753688233768,0.06498747,119020.0,119010.0,1.50248105]
[1753688235264,4e-05,119040.0,119020.0,0.168022]
[1753688235470,0.04933,119040.0,119030.0,1.1940819]
[1753688235870,0.04933,119040.0,119030.0,1.9485619]
[1753688237268,0.09086447,119040.0,119030.0,1.9485619]
[1753688238071,0.09086447,119040.0,119030.0,1.9545619]
[1753688239073,0.09086447,119040.0,119030.0,1.9635619]
[1753688239666,0.15691596,119040.0,119030.0,1.9635619]
[1753688242377,0.30805596,119040.0,119030.0,1.9635619]
[1753688242678,0.47537596,119040.0,119030.0,1.9635619]
[1753688243171,0.58538596,119040.0,119030.0,1.9635619]
[1753688243370,0.58538596,119040.0,119030.0,1.73031]
[1753688243577,0.75337966,119040.0,119030.0,1.2833619]
[1753688243773,0.98663156,119040.0,119030.0,1.48007]
[1753688243972,0.98663156,119040.0,119030.0,0.97559]
[1753688244176,0.75337966,119040.0,119030.0,0.97559]
[1753688245971,0.75337966,119040.0,119030.0,0.97555]
[1753688246374,0.58538596,119040.0,119030.0,0.97555]
[1753688246566,0.58538596,119040.0,119030.0,1.2088019]
[1753688247374,0.60234779,119040.0,119030.0,1.2088019]
[1753688249675,0.60234779,119040.0,119030.0,1.7132819]
[1753688249874,0.17387779,119040.0,119030.0,1.7132819]
[1753688250484,0.32501779,119040.0,119030.0,1.7132819]
[1753688250780,0.60234779,119040.0,119030.0,1.7132819]
[1753688251984,0.77034159,119040.0,119030.0,1.48003]
[1753688252182,1.00359349,119040.0,119030.0,0.97543]
[1753688252380,1.06349084,119040.0,119030.0,0.97543]
[1753688252681,1.00359349,119040.0,119030.0,0.97543]
[1753688253080,0.77034159,119040.0,119030.0,0.97543]
[1753688253479,0.83023894,119040.0,119030.0,0.97543]
[1753688254275,0.84697817,119040.0,119030.0,0.86807]
[1753688254881,1.08023007,119040.0,119030.0,0.18827]
[1753688255094,1.02033272,119040.0,119030.0,0.86803]
[1753688255277,1.08023007,119040.0,119030.0,0.69476]
[1753688255480,1.75995007,119040.0,119030.0,0.015]
[1753688255877,0.616242,119010.0,119000.0,0.05355994]
[1753688256082,0.04929,118990.0,118980.0,1.16232]
[1753688256278,0.06625183,118990.0,118980.0,2.1500519]
[1753688256684,0.06625183,118990.0,118980.0,2.8297719]
[1753688257485,0.06625183,118990.0,118980.0,2.1500519]
[1753688257679,0.06625183,118990.0,118980.0,2.8298119]
[1753688257980,0.06725183,118990.0,118980.0,2.8298119]
[1753688258380,0.10845556,118990.0,118980.0,2.8298119]
[1753688258686,0.10845556,118990.0,118980.0,1.6674519]
[1753688265892,0.01796183,118990.0,118980.0,2.0687823]
[1753688266489,0.06625183,118990.0,118980.0,2.0687823]
[1753688268696,0.1074342,118990.0,118980.0,2.0687823]
[1753688269089,0.1074342,118990.0,118980.0,1.9007038]
[1753688269290,0.1074342,118990.0,118980.0,2.0687823]
[1753688272197,0.1074342,118990.0,118980.0,1.8355304]
[1753688273188,0.1074342,118990.0,118980.0,1.6674519]
[1753688273789,0.1074342,118990.0,118980.0,1.8354104]
[1753688273994,0.06625183,118990.0,118980.0,2.0686623]
[1753688275902,0.10828514,118990.0,118980.0,2.0686623]
[1753688277506,0.63918583,119020.0,119010.0,0.03074]
[1753688277702,0.65605553,119020.0,119010.0,0.9827619]
[1753688277901,0.65605553,119020.0,119010.0,1.4872419]
[1753688278099,0.23659553,119020.0,119010.0,1.67169036]
[1753688278305,0.86637588,119020.0,119010.0,1.67169036]
[1753688278505,0.69835378,119020.0,119010.0,1.67169036]
[1753688278700,0.70535378,119020.0,119010.0,1.67169036]
[1753688279502,0.75364378,119020.0,119010.0,1.67169036]
[1753688280099,0.75764378,119020.0,119010.0,1.67169036]
[1753688281205,0.75764378,119020.0,119010.0,1.4479519]
[1753688281406,0.75764378,119020.0,119010.0,0.7684719]
[1753688281607,0.75764378,119020.0,119010.0,1.4479119]
[1753688285106,0.75764378,119020.0,119010.0,1.4872019]
[1753688286609,0.92566588,119020.0,119010.0,0.7684719]
[1753688286909,0.75764378,119020.0,119010.0,1.4477919]
[1753688287714,0.75764378,119020.0,119010.0,1.4870819]
[1753688288912,0.33818378,119020.0,119010.0,1.67153036]
[1753688289109,0.28989378,119020.0,119010.0,1.67153036]
[1753688289506,0.30682102,119020.0,119010.0,1.67153036]
[1753688290417,0.35511102,119020.0,119010.0,1.67153036]
[1753688290903,0.30682102,119020.0,119010.0,1.16705036]
[1753688291107,0.30682102,119020.0,119010.0,1.67153036]
[1753688291514,0.30682102,119020.0,119010.0,1.83956656]
[1753688292706,0.30682102,119020.0,119010.0,1.67153036]
[1753688294211,0.35245102,119020.0,119010.0,1.67153036]
[1753688301311,0.35245102,119020.0,119010.0,1.83956656]
[1753688301618,0.07022549,119020.0,119010.0,1.83956656]
[1753688302617,0.30326072,119040.0,119030.0,0.1975479]
[1753688302824,0.30326072,119040.0,119030.0,1.4461919]
[1753688303524,0.56860072,119040.0,119030.0,1.4461919]
[1753688303821,0.56860072,119040.0,119030.0,1.4541919]
[1753688304006,0.56860072,119040.0,119030.0,1.22094]
[1753688304214,0.56860072,119040.0,119030.0,1.4541919]
[1753688304416,0.56860072,119040.0,119030.0,1.4601919]
[1753688305022,0.6105717,119040.0,119030.0,1.4601919]
[1753688313222,0.7785656,119040.0,119030.0,0.69268]
[1753688313521,1.0118175,119040.0,119030.0,0.69268]
[1753688314321,1.07171485,119040.0,119030.0,0.69268]
[1753688314624,1.08870864,119040.0,119030.0,0.69264]
[1753688315028,1.02881129,119040.0,119030.0,0.69264]
[1753688315215,0.79555939,119040.0,119030.0,0.69264]
[1753688315626,0.79555939,119040.0,119030.0,0.014]
[1753688315827,0.79555939,119040.0,119030.0,0.6926]
[1753688320521,0.79555939,119040.0,119030.0,0.014]
[1753688320722,0.48577,119010.0,119000.0,0.2514319]
[1753688321029,0.67079999,119010.0,119000.0,0.2514319]
[1753688321224,0.48577,119000.0,118990.0,1.3954919]
[1753688321424,0.50276379,119000.0,118990.0,2.5784919]
[1753688322030,0.50276379,119000.0,118990.0,1.4162519]
[1753688322727,0.67081409,119000.0,118990.0,1.4162519]
[1753688323125,0.42321829,119000.0,118990.0,0.67848]
[1753688323740,0.70659829,119000.0,118990.0,0.67848]
[1753688324831,0.71759829,119000.0,118990.0,0.67848]
[1753688325034,0.71759829,119000.0,118980.0,0.9117719]
[1753688325035,0.66450722,118990.0,118980.0,0.9117719]
[1753688325233,0.68150101,118990.0,118980.0,1.4162519]
[1753688325734,0.51343661,118990.0,118980.0,1.4162519]
[1753688326434,0.52643661,118990.0,118980.0,1.4162519]
[1753688326634,0.52643661,118990.0,118980.0,1.4344319]
[1753688328737,0.52643661,118990.0,118980.0,1.4457919]
[1753688329936,0.52643661,118990.0,118980.0,1.4344319]
[1753688331132,0.52643661,118990.0,118980.0,1.4457919]
[1753688331738,0.52643661,118990.0,118980.0,1.4344319]
[1753688334840,0.69450101,118990.0,118980.0,1.4344319]
[1753688335642,0.52643661,118990.0,118980.0,1.4344319]
[1753688336747,0.52643661,118990.0,118980.0,1.4457919]
[1753688338538,0.52643661,118990.0,118980.0,1.54847472]
[1753688342049,0.09708661,118990.0,118980.0,1.73292318]
[1753688345152,0.09729191,118990.0,118980.0,1.73292318]
[1753688348855,0.09731316,118990.0,118980.0,1.73292318]
[1753688349457,0.04924316,118990.0,118980.0,1.73292318]
[1753688350153,0.09731316,118990.0,118980.0,1.73292318]
[1753688355664,0.04924316,118990.0,118980.0,1.90100178]
[1753688355860,0.04924316,118990.0,118980.0,1.73292318]
[1753688356164,0.04924316,118990.0,118980.0,1.90100178]
[1753688356372,0.03788316,118990.0,118980.0,1.90100178]
[1753688356975,0.03788316,118990.0,118980.0,2.2369365]
[1753688356976,0.02888316,118990.0,118980.0,2.2369365]
[1753688357171,4e-05,118990.0,118980.0,2.2369365]
[1753688357366,0.54935735,119010.0,118990.0,0.2520837]
[1753688357567,0.54935735,119010.0,119000.0,1.51849472]
[1753688358071,0.54935735,119010.0,119000.0,2.0388779]
[1753688358269,0.10795735,119010.0,119000.0,2.0388779]
[1753688358469,0.10795735,119010.0,119000.0,1.70294318]
[1753688358868,0.10795735,119010.0,119000.0,2.0388779]
[1753688359575,0.10995735,119010.0,119000.0,2.0388779]
[1753688359874,0.10799735,119010.0,119000.0,2.0388779]
[1753688360070,0.10999735,119010.0,119000.0,2.0388779]
[1753688360775,0.0501,119010.0,119000.0,2.0388779]
[1753688361373,0.0521,119010.0,119000.0,2.0388779]
[1753688363173,0.0521,119010.0,119000.0,2.2069282]
[1753688364369,0.0521,119010.0,119000.0,1.85442944]
[1753688364577,0.0521,119010.0,119000.0,2.0388779]
[1753688364775,0.0501,119010.0,119000.0,2.0388779]
[1753688365076,0.0521,119010.0,119000.0,2.0388779]
[1753688365276,0.0521,119010.0,119000.0,2.2069281]
[1753688365677,0.0501,119010.0,119000.0,2.0388779]
[1753688365878,0.0521,119010.0,119000.0,2.0388779]
[1753688369177,0.0521,119010.0,119000.0,2.2069282]
[1753688369483,0.06916636,119010.0,119000.0,2.22369334]
[1753688370679,0.06916636,119010.0,119000.0,2.22384201]
[1753688374383,0.06916636,119010.0,119000.0,2.22427454]
[1753688376680,0.02110636,119010.0,119000.0,2.22427454]
[1753688376884,0.41155492,119050.0,119040.0,0.44405]
[1753688377084,0.20157132,119050.0,119040.0,0.96503225]
[1753688377681,0.24395645,119050.0,119040.0,0.96503225]
[1753688378784,0.35999645,119050.0,119040.0,0.96503225]
[1753688378986,0.52330645,119050.0,119040.0,0.96503225]
[1753688379386,0.59195009,119050.0,119040.0,0.96503225]
[1753688379687,0.31260009,119050.0,119030.0,0.54843472]
[1753688379887,0.46209,119040.0,119030.0,0.39901]
[1753688380076,0.46209,119040.0,119030.0,0.44405]
[1753688380587,0.46209,119040.0,119030.0,0.39901]
[1753688380886,0.46209,119040.0,119030.0,0.22355]
[1753688381088,0.6300837,119040.0,119030.0,0.002]
[1753688381883,0.46209,119030.0,119020.0,0.58012472]
[1753688382080,0.46209,119030.0,119020.0,0.62546472]
[1753688382280,0.46209,119030.0,119020.0,0.73494472]
[1753688382493,0.6300978,119030.0,119020.0,0.73494472]
[1753688382993,0.46209,119030.0,119020.0,0.51214472]
[1753688383289,0.630098,119030.0,119020.0,0.51214472]
[1753688383592,0.630098,119030.0,119020.0,0.58006472]
[1753688384186,0.46209,119030.0,119020.0,0.62901472]
[1753688384587,0.6300979,119030.0,119020.0,0.63001472]
[1753688385188,0.46209,119030.0,119020.0,0.63001472]
[1753688385491,0.6300979,119030.0,119020.0,0.63101472]
[1753688385997,0.6300979,119030.0,119020.0,0.002]
[1753688386297,0.68999525,119030.0,119020.0,0.002]
[1753688388197,0.6300979,119030.0,119020.0,0.002]
[1753688389002,0.64708231,119030.0,119020.0,0.002]
[1753688390199,0.98301703,119030.0,119020.0,0.002]
[1753688390399,0.64708231,119030.0,119020.0,0.002]
[1753688390601,0.81511432,119030.0,119020.0,0.002]
[1753688390904,1.25651432,119030.0,119020.0,0.002]
[1753688391397,1.25651432,119030.0,119020.0,0.001]
[1753688391601,1.25651432,119030.0,119020.0,0.005]
[1753688391904,1.25651432,119030.0,119000.0,0.33593472]
[1753688391905,0.6358762,119010.0,119000.0,0.33593472]
[1753688392098,0.27946,119000.0,118990.0,0.79292472]
[1753688392304,0.48482441,119000.0,118990.0,0.97797225]
[1753688394006,0.49182441,119000.0,118990.0,0.97797225]
[1753688394206,0.49582441,119000.0,118990.0,0.97797225]
[1753688398609,0.49594624,119000.0,118990.0,0.97797225]
[1753688401908,0.51500164,119000.0,118990.0,0.97797225]
[1753688405114,0.49594624,119000.0,118990.0,0.97797225]
[1753688405509,0.51468866,119000.0,118990.0,0.97797225]
[1753688410809,0.35688866,119000.0,118990.0,1.16242071]
[1753688411014,0.04684866,119000.0,118990.0,1.49835543]
[1753688411516,0.04684866,119000.0,118990.0,1.16242071]
[1753688412622,0.09502866,119000.0,118990.0,1.16242071]
[1753688413413,0.09102866,119000.0,118990.0,1.16242071]
[1753688413620,0.08702866,119000.0,118990.0,1.16242071]
[1753688413820,0.09302866,119000.0,118990.0,1.16242071]
[1753688416723,0.09302866,119000.0,118990.0,1.33048511]
[1753688417121,0.04484866,119000.0,118990.0,1.16242071]
[1753688418427,0.09302866,119000.0,118990.0,1.16242071]
[1753688419223,0.09302866,119000.0,118990.0,1.16232071]
[1753688423028,0.02610624,119000.0,118990.0,1.33038511]
[1753688423228,0.02610624,119000.0,118990.0,1.66631983]
[1753688423423,0.01888465,119010.0,119000.0,0.42691]
[1753688423624,0.01888465,119010.0,119000.0,2.12871717]
[1753688423829,0.01888465,119010.0,119000.0,2.31316563]
[1753688424820,0.02488465,119010.0,119000.0,2.31316563]
[1753688427031,0.02688465,119010.0,119000.0,2.31316563]
[1753688428830,0.25027,119030.0,119020.0,0.16239]
[1753688429030,0.30006,119030.0,119020.0,1.38252472]
[1753688429333,0.48947,119030.0,119020.0,1.56757225]
[1753688429530,0.50784622,119030.0,119020.0,1.56757225]
[1753688430331,0.50884622,119030.0,119020.0,1.56757225]
[1753688430732,0.51084622,119030.0,119020.0,1.56757225]
[1753688431634,0.32412357,119030.0,119020.0,1.56757225]
[1753688431835,0.09965622,119030.0,119020.0,1.56757225]
[1753688432833,0.27164622,119030.0,119020.0,1.56757225]
[1753688433032,0.09965622,119030.0,119020.0,1.56757225]
[1753688434133,0.06955622,119030.0,119020.0,1.56757225]
[1753688434932,0.43621622,119030.0,119020.0,1.56757225]
[1753688435142,0.51084622,119030.0,119020.0,1.56757225]
[1753688435335,0.52796157,119030.0,119020.0,1.56757225]
[1753688436038,0.45333157,119030.0,119020.0,1.56757225]
[1753688436434,0.28134157,119030.0,119020.0,1.56757225]
[1753688436635,0.08667157,119030.0,119020.0,1.56757225]
[1753688437743,0.02011535,119030.0,119020.0,1.92004281]
[1753688437941,0.06829535,119030.0,119020.0,1.92004281]
[1753688442339,0.06829535,119030.0,119020.0,1.73499528]
[1753688442545,0.06829535,119030.0,119020.0,1.92004281]
[1753688443240,0.02011535,119030.0,119020.0,2.25597753]
[1753688443444,0.04562,119040.0,119030.0,0.3295379]
[1753688443643,0.04562,119040.0,119030.0,1.39393487]
[1753688443844,0.04562,119040.0,119030.0,1.57838333]
[1753688449544,0.15664877,119050.0,119040.0,0.5370038]
[1753688449750,0.15664877,119050.0,119040.0,2.0869698]
[1753688449944,0.15664877,119050.0,119040.0,2.27141826]
[1753688450450,0.11426364,119050.0,119040.0,2.27141826]
[1753688451145,0.11426364,119050.0,119040.0,2.27241826]
[1753688451951,0.06864364,119050.0,119040.0,2.27241826]
[1753688452250,0.01857699,119060.0,119050.0,0.3974897]
[1753688452251,0.10538666,119060.0,119050.0,0.3974897]
[1753688452454,0.06419699,119060.0,119050.0,1.05797195]
[1753688452653,0.06419699,119060.0,119050.0,1.24242041]
[1753688453446,0.06419699,119060.0,119050.0,1.24842041]
[1753688455444,0.08112881,119060.0,119050.0,1.24842041]
[1753688456551,0.08112881,119060.0,119050.0,1.25842041]
[1753688457447,0.12412217,119060.0,119050.0,1.25842041]
[1753688458054,0.08112881,119060.0,119050.0,1.25842041]
[1753688461254,0.12292441,119060.0,119050.0,1.25842041]
[1753688462955,0.08112881,119060.0,119050.0,1.25842041]
[1753688463658,0.06259182,119060.0,119050.0,1.25842041]
[1753688464248,0.06790768,119070.0,119060.0,0.5369756]
[1753688464249,0.15481102,119070.0,119060.0,0.5369756]
[1753688464457,0.04562,119070.0,119060.0,2.08699783]
[1753688464659,0.04562,119070.0,119060.0,2.27144629]
[1753688465054,0.04562,119070.0,119060.0,1.93551157]
[1753688465957,0.11410757,119070.0,119060.0,1.93551157]
[1753688466559,0.11410757,119070.0,119060.0,1.94451157]
[1753688467462,0.15626088,119070.0,119060.0,1.94451157]
[1753688468662,0.18727088,119070.0,119060.0,1.94451157]
[1753688468961,0.34681088,119070.0,119060.0,1.94951157]
[1753688470962,0.34681088,119070.0,119060.0,1.78154597]
[1753688471459,0.34681088,119070.0,119060.0,1.10574597]
[1753688471665,0.57670088,119070.0,119060.0,1.59689751]
[1753688473362,0.57670088,119070.0,119060.0,0.92129751]
[1753688473562,0.57670088,119070.0,119060.0,1.59685751]
[1753688476258,0.59359853,119070.0,119060.0,1.59685751]
[1753688476453,0.59359853,119070.0,119060.0,0.92129751]
[1753688476658,0.76155003,119070.0,119060.0,0.68952]
[1753688477059,0.76155003,119070.0,119060.0,1.02545472]
[1753688477060,0.61233512,119070.0,119060.0,1.02545472]
[1753688477462,0.78028662,119070.0,119060.0,1.02545472]
[1753688477768,0.78032662,119070.0,119060.0,1.02545472]
[1753688479161,0.78032662,119070.0,119060.0,0.68952]
[1753688479361,0.61237512,119070.0,119060.0,0.68952]
[1753688479563,0.61237512,119070.0,119060.0,1.02545472]
[1753688479762,0.61237512,119070.0,119060.0,1.16495472]
[1753688480568,0.78032662,119070.0,119060.0,1.16495472]
[1753688481269,0.61237512,119070.0,119060.0,1.16495472]
[1753688481473,0.78032662,119070.0,119060.0,1.16495472]
[1753688481766,0.61237512,119070.0,119060.0,1.16495472]
[1753688481962,0.61237512,119070.0,119060.0,1.23293472]
[1753688482871,0.67227247,119070.0,119060.0,1.23293472]
[1753688484964,0.84022387,119070.0,119060.0,1.23293472]
[1753688485171,0.78032652,119070.0,119060.0,1.23293472]
[1753688486273,0.78033235,119070.0,119060.0,1.23293472]
[1753688486974,0.8402297,119070.0,119060.0,1.23293472]
[1753688487174,0.78033235,119070.0,119060.0,1.23293472]
[1753688487977,0.78033235,119070.0,119060.0,0.82902]
[1753688489270,0.78033235,119070.0,119060.0,0.897]
[1753688490070,0.61238095,119070.0,119060.0,0.897]
[1753688490275,0.61238095,119070.0,119060.0,1.05625]
[1753688490477,0.61238095,119070.0,119060.0,1.39218472]
[1753688499179,0.6722783,119070.0,119060.0,1.39218472]
[1753688499683,0.61238095,119070.0,119060.0,1.39218472]
[1753688499983,0.1679656,119060.0,119050.0,0.20748]
[1753688500184,1.31849067,119060.0,119050.0,0.81462]
[1753688500385,1.37838802,119060.0,119050.0,0.1395]
[1753688500682,1.42038042,119060.0,119040.0,0.74306]
[1753688500988,0.47674,119050.0,119040.0,1.04181]
[1753688501194,0.51263978,119050.0,119040.0,1.04181]
[1753688501980,0.51263978,119050.0,119040.0,1.04281]
[1753688503693,0.51263978,119050.0,119040.0,1.04181]
[1753688503894,0.51263978,119050.0,119040.0,1.37774472]
[1753688503895,0.51463978,119050.0,119040.0,1.37774472]
[1753688508800,0.51463978,119050.0,119040.0,1.56279225]
[1753688519702,0.51463978,119050.0,119040.0,1.37774472]
[1753688520799,0.51463978,119050.0,119040.0,1.56279225]
[1753688522803,0.51463978,119050.0,119040.0,1.22685753]
[1753688523896,0.51463978,119050.0,119040.0,1.04181]
[1753688525402,0.51410487,119050.0,119040.0,1.04181]
[1753688525903,0.68208457,119050.0,119040.0,1.04181]
[1753688526202,0.74198192,119050.0,119040.0,1.04181]
[1753688526903,1.07791664,119050.0,119040.0,1.04181]
[1753688527208,0.90993694,119050.0,119040.0,1.04181]
[1753688528207,1.07791664,119050.0,119040.0,1.04181]
[1753688529496,1.05945525,119050.0,119040.0,1.04181]
[1753688529907,1.07679465,119050.0,119040.0,1.04181]
[1753688530508,1.0168973,119050.0,119040.0,0.36673]
[1753688530711,0.46932,119040.0,119030.0,0.36887]
[1753688530903,1.04353225,119040.0,119030.0,1.04347]
[1753688532010,1.04653225,119040.0,119030.0,1.04347]
[1753688533412,0.71059753,119040.0,119030.0,1.04347]
[1753688533608,0.71359753,119040.0,119030.0,1.04347]
[1753688535011,0.70759753,119040.0,119030.0,1.04347]
[1753688540813,0.70763753,119040.0,119030.0,1.04347]
[1753688542213,0.76759691,119040.0,119030.0,1.04347]
[1753688543815,0.70763753,119040.0,119030.0,1.04347]
[1753688547426,0.76759691,119040.0,119030.0,1.04347]
[1753688548822,1.01937458,119040.0,119030.0,1.29524767]
[1753688549217,0.76759691,119040.0,119030.0,1.66474366]
[1753688549416,0.53501691,119040.0,119030.0,1.66474366]
[1753688550823,0.53801691,119040.0,119030.0,1.66474366]
[1753688551322,0.71288691,119040.0,119030.0,1.66474366]
[1753688551518,0.78447691,119040.0,119030.0,1.66474366]
[1753688551822,1.03925458,119040.0,119030.0,1.66474366]
[1753688552823,0.78747691,119040.0,119030.0,1.41296599]
[1753688555323,0.72751753,119040.0,119030.0,1.41296599]
[1753688555716,0.72810245,119040.0,119030.0,1.41296599]
[1753688557519,0.29017245,119040.0,119030.0,1.74866011]
[1753688559119,0.29017245,119040.0,119030.0,1.91666801]
[1753688560926,0.29017245,119040.0,119030.0,1.74866011]
[1753688562827,0.72245245,119040.0,119030.0,1.74866011]
[1753688570637,0.56560245,119040.0,119030.0,1.07406011]
[1753688570842,0.72469245,119040.0,119030.0,1.74798011]
[1753688572830,0.72469245,119040.0,119030.0,1.41228599]
[1753688574746,0.97645445,119040.0,119030.0,1.66404799]
[1753688575447,0.72469245,119040.0,119030.0,1.41228599]
[1753688575747,0.97645445,119040.0,119030.0,1.66404799]
[1753688579743,1.22821645,119040.0,119030.0,0.55391753]
[1753688579944,1.22821645,119040.0,119030.0,1.22767753]
[1753688580152,0.97645445,119040.0,119030.0,1.22767753]
[1753688582046,0.50193933,119030.0,119020.0,0.63111143]
[1753688582252,0.50193933,119030.0,119020.0,1.23811696]
[1753688582253,0.77118973,119030.0,119020.0,1.23811696]
[1753688582455,0.77118973,119030.0,119020.0,1.48987896]
[1753688582952,0.77118973,119030.0,119020.0,1.23811696]
[1753688583151,0.77118973,119030.0,119020.0,1.48987896]
[1753688583355,0.77418973,119030.0,119020.0,1.48987896]
[1753688583755,0.52242773,119030.0,119020.0,1.74164096]
[1753688584153,0.52242773,119030.0,119020.0,1.48987896]
[1753688584551,0.77418973,119030.0,119020.0,1.48987896]
[1753688584754,0.52242773,119030.0,119020.0,1.57384527]
[1753688585256,0.52542773,119030.0,119020.0,1.57384527]
[1753688585651,0.52542773,119030.0,119020.0,1.23811696]
[1753688587861,0.52542773,119030.0,119020.0,1.57384527]
[1753688598670,0.52542773,119030.0,119020.0,1.38879774]
[1753688599773,0.52542773,119030.0,119020.0,1.57384527]
[1753688601169,0.29495773,119030.0,119020.0,1.57384527]
[1753688601970,0.34408773,119030.0,119020.0,1.57384527]
[1753688602272,0.41601773,119030.0,119020.0,1.57384527]
[1753688602475,0.52510773,119030.0,119020.0,1.57384527]
[1753688602969,0.52510773,119030.0,119020.0,1.21908753]
[1753688603171,0.52510773,119030.0,119020.0,1.55481584]
[1753688604773,0.77689952,119030.0,119020.0,1.72267111]
[1753688610676,0.52510773,119030.0,119020.0,1.72267111]
[1753688610973,0.09022773,119030.0,119020.0,1.90711957]
[1753688612378,0.12024773,119030.0,119020.0,1.90711957]
[1753688614381,0.09022773,119030.0,119020.0,2.32693336]
[1753688614680,0.09022773,119030.0,119020.0,2.07514157]
[1753688617582,0.04059773,119030.0,119020.0,2.32693336]
[1753688617781,0.26976405,119040.0,119030.0,0.327798]
[1753688617982,0.26976405,119040.0,119030.0,1.18330911]
[1753688618184,0.26976405,119040.0,119030.0,1.36775757]
[1753688620484,0.26976405,119040.0,119030.0,1.19974957]
[1753688620986,0.26976405,119040.0,119030.0,1.03177773]
[1753688621484,0.26976405,119040.0,119030.0,1.19978563]
[1753688625086,0.22141405,119040.0,119030.0,1.53539737]
[1753688626487,0.22141405,119040.0,119030.0,1.19978563]
[1753688627486,0.22141405,119040.0,119030.0,1.53539737]
[1753688628182,0.22141405,119040.0,119030.0,1.19978563]
[1753688628579,0.22141405,119040.0,119030.0,1.53539737]
[1753688629087,0.00326499,119060.0,119050.0,0.3587455]
[1753688629288,0.00326499,119060.0,119050.0,1.36739724]
[1753688629684,0.02055714,119060.0,119050.0,1.36739724]
[1753688630191,0.19401714,119060.0,119050.0,1.36739724]
[1753688630390,0.19401714,119060.0,119050.0,1.37439724]
[1753688630889,0.19401714,119060.0,119050.0,1.37939724]
[1753688631895,0.19401714,119060.0,119050.0,1.21142174]
[1753688632087,0.19401714,119060.0,119050.0,1.37940144]
[1753688632692,0.19401714,119060.0,119050.0,1.21142174]
[1753688632693,0.38292714,119060.0,119050.0,1.21142174]
[1753688633186,0.38292714,119060.0,119050.0,1.37940144]
[1753688633394,0.38292714,119060.0,119050.0,1.21142174]
[1753688634693,0.45118714,119060.0,119050.0,1.21142174]
[1753688640596,0.45118714,119060.0,119050.0,1.21118174]
[1753688641487,0.45118714,119060.0,119050.0,0.15818]
[1753688641697,0.78679888,119060.0,119050.0,0.012]
[1753688641889,0.78679888,119060.0,119050.0,0.68476]
[1753688642094,0.78679888,119060.0,119050.0,0.76296]
[1753688642289,0.78679888,119060.0,119050.0,0.83094]
[1753688642495,0.45118714,119060.0,119050.0,0.83094]
[1753688644900,0.95476448,119060.0,119050.0,0.012]
[1753688645105,1.18271586,119060.0,119050.0,0.00902818]
[1753688645405,0.5303638,119040.0,119020.0,0.04459]
[1753688645605,0.54181389,119040.0,119030.0,0.67272]
[1753688645903,0.43405781,119040.0,119030.0,0.67272]
[1753688646204,0.66377595,119040.0,119030.0,0.67272]
[1753688646500,0.55564401,119040.0,119030.0,0.67272]
[1753688646898,0.49578215,119040.0,119030.0,0.7407]
[1753688647099,0.49678215,119040.0,119030.0,0.7407]
[1753688647296,0.66477595,119040.0,119030.0,0.06798]
[1753688647508,0.47849,119030.0,119020.0,0.14818]
[1753688647699,0.49578215,119030.0,119020.0,0.8209]
[1753688648303,0.49578215,119030.0,119020.0,0.8189]
[1753688648903,0.50078215,119030.0,119020.0,0.8189]
[1753688649807,0.51078215,119030.0,119020.0,0.8189]
[1753688653906,0.51078215,119030.0,119020.0,1.15451174]
[1753688654109,0.51078215,119030.0,119020.0,0.8189]
[1753688656600,0.51078215,119030.0,119020.0,0.14618]
[1753688656803,1.01440189,119030.0,119020.0,0.81894]
[1753688657307,0.47404,119020.0,119010.0,0.14676]
[1753688657508,0.49133215,119020.0,119010.0,0.81952]
[1753688658005,0.49133215,119020.0,119010.0,0.86411]
[1753688658501,0.49533215,119020.0,119010.0,0.86411]
[1753688659807,0.50233215,119020.0,119010.0,0.86411]
[1753688662207,0.50233215,119020.0,119010.0,0.81952]
[1753688662909,0.50233215,119020.0,119010.0,0.86411]
[1753688669717,0.50233215,119020.0,119010.0,0.88125881]
[1753688674825,0.75418815,119020.0,119010.0,1.13311481]
[1753688678620,0.75418815,119020.0,119010.0,0.46035481]
[1753688678825,0.75418815,119020.0,119010.0,1.13295481]
[1753688680624,0.75418815,119020.0,119010.0,0.88109881]
[1753688680825,0.75418815,119020.0,119010.0,1.13295481]
[1753688681825,1.00604415,119020.0,119010.0,0.68974881]
[1753688682023,1.00604415,119020.0,119010.0,0.6726]
[1753688682424,1.00604415,119020.0,119010.0,0.74058]
[1753688682621,1.00604415,119020.0,119010.0,0.75768967]
[1753688682820,1.00604415,119020.0,119010.0,0.83417967]
[1753688683619,0.75418815,119020.0,119010.0,0.83417967]
[1753688685128,1.00604415,119020.0,119010.0,0.83417967]
[1753688685429,1.00604415,119020.0,119010.0,0.83409967]
[1753688688628,1.06590601,119020.0,119010.0,0.83409967]
[1753688689031,1.06590601,119020.0,119010.0,0.16157967]
[1753688689232,1.06590601,119020.0,119010.0,0.83405967]
[1753688692236,1.06590601,119020.0,119010.0,0.11594967]
[1753688692428,1.00604415,119020.0,119010.0,0.83401967]
[1753688698641,1.06590601,119020.0,119010.0,0.83401967]
[1753688699942,1.06590601,119020.0,119010.0,0.87860967]
[1753688700337,1.00604415,119020.0,119010.0,0.87860967]
[1753688702238,0.50233215,119020.0,119010.0,0.87860967]
[1753688702444,1.00604415,119020.0,119010.0,0.87860967]
[1753688702842,0.75418815,119020.0,119010.0,1.13034567]
[1753688703443,0.75418815,119020.0,119010.0,0.87848967]
[1753688703641,1.00604415,119020.0,119010.0,0.87844967]
[1753688703848,0.75418815,119020.0,119010.0,0.87844967]
[1753688704037,0.75418815,119020.0,119010.0,0.20616967]
[1753688704238,0.75422815,119020.0,119010.0,0.87844967]
[1753688704544,0.75422815,119020.0,119010.0,1.13030567]
[1753688705445,0.81420398,119020.0,119010.0,1.13030567]
[1753688705938,0.81420398,119020.0,119010.0,0.45802567]
[1753688705939,0.75422815,119020.0,119010.0,0.45802567]
[1753688706243,0.75422815,119020.0,119010.0,1.13030567]
[1753688706638,1.00608415,119020.0,119010.0,0.87844967]
[1753688711145,1.06605998,119020.0,119010.0,0.87844967]